bitfinex/quotes_BTCUSD_20240719
["timestamp","ask_amount","ask_price","bid_price","bid_amount"]
[1721407576659,0.70089935,66412.0,66411.0,0.002]
[1721407576856,0.60089935,66412.0,66411.0,0.002]
[1721407577053,0.70089935,66412.0,66411.0,0.002]
[1721407577255,0.8845615,66412.0,66411.0,0.002]
[1721407577460,1.0023615,66412.0,66410.0,0.00022499]
[1721407577715,0.54651761,66411.0,66410.0,0.00022499]
[1721407577923,0.0747,66408.0,66402.0,0.009196]
[1721407578298,0.70089935,66407.0,66402.0,0.009196]
[1721407578471,0.07717479,66409.0,66402.0,0.009196]
[1721407578472,0.1695,66403.0,66402.0,0.009196]
[1721407578677,0.1584,66399.0,66379.0,0.7926]
[1721407578811,0.1584,66397.0,66378.0,0.5674]
[1721407579017,0.1584,66393.0,66378.0,0.4753]
[1721407579286,0.60040175,66392.0,66378.0,0.4753]
[1721407579598,0.0948,66390.0,66378.0,0.4753]
[1721407579746,0.24918174,66390.0,66378.0,0.4753]
[1721407580338,0.15636276,66389.0,66378.0,0.4753]
[1721407581140,0.24918174,66390.0,66378.0,0.4753]
[1721407581336,0.26318174,66390.0,66378.0,0.4753]
[1721407581542,0.04962817,66389.0,66378.0,0.4753]
[1721407581946,0.05,66384.0,66378.0,0.14362169]
[1721407582168,0.05,66385.0,66369.0,0.009196]
[1721407582169,0.15438174,66383.0,66369.0,0.009196]
[1721407582368,0.1584,66380.0,66369.0,0.009196]
[1721407582574,0.4658,66381.0,66361.0,0.14362169]
[1721407582575,0.2084,66378.0,66368.0,0.00264781]
[1721407582775,0.1584,66376.0,66361.0,0.14362169]
[1721407583008,0.25438174,66375.0,66358.0,0.03]
[1721407583614,0.04001469,66374.0,66358.0,0.03]
[1721407583826,0.04527964,66373.0,66358.0,0.03]
[1721407584890,0.15438174,66372.0,66358.0,0.03]
[1721407585059,0.0747,66371.0,66358.0,0.03]
[1721407585278,0.22908174,66371.0,66358.0,0.03]
[1721407585441,0.15438174,66370.0,66358.0,0.03]
[1721407585641,0.04467614,66369.0,66358.0,0.03]
[1721407586504,0.10043501,66371.0,66358.0,0.03]
[1721407587399,0.11443501,66371.0,66358.0,0.03]
[1721407587599,0.10043501,66371.0,66358.0,0.03]
[1721407587814,0.014,66369.0,66358.0,0.03]
[1721407588221,0.10043501,66371.0,66358.0,0.03]
[1721407588399,0.15031851,66371.0,66358.0,0.03]
[1721407588796,0.13631851,66371.0,66358.0,0.02]
[1721407589006,0.014,66369.0,66358.0,0.02]
[1721407589379,0.014,66369.0,66360.0,0.07717479]
[1721407589826,0.014,66369.0,66358.0,0.02]
[1721407590205,0.028,66369.0,66358.0,0.02]
[1721407590865,0.014,66369.0,66358.0,0.02]
[1721407591069,0.01173501,66371.0,66358.0,0.02]
[1721407591269,0.014,66369.0,66358.0,0.02]
[1721407591897,0.01201078,66374.0,66358.0,0.02]
[1721407592136,0.0682,66376.0,66359.0,0.00279399]
[1721407592347,0.0682,66376.0,66358.0,0.02]
[1721407592348,0.014,66371.0,66358.0,0.02]
[1721407592866,0.014,66371.0,66360.0,0.07717479]
[1721407593041,0.014,66371.0,66361.0,0.31288174]
[1721407593216,0.014,66369.0,66367.0,0.07717479]
[1721407593421,0.014,66371.0,66368.0,0.24547573]
[1721407593626,0.01175761,66376.0,66369.0,0.0702]
[1721407593959,0.014,66374.0,66373.0,0.150662]
[1721407594097,0.014,66374.0,66373.0,0.15438174]
[1721407594508,0.014,66374.0,66369.0,0.00279399]
[1721407594714,0.014,66374.0,66365.0,0.0745]
[1721407594915,0.014,66371.0,66365.0,0.0745]
[1721407595114,0.014,66371.0,66362.0,0.0932]
[1721407595313,0.0748,66377.0,66362.0,0.0932]
[1721407595559,0.0748,66377.0,66373.0,0.001]
[1721407595734,0.001,66374.0,66373.0,0.001]
[1721407595934,0.001,66374.0,66363.0,0.00279399]
[1721407596137,0.001,66374.0,66364.0,0.15438174]
[1721407596336,0.006,66371.0,66365.0,0.00279399]
[1721407596605,0.0874,66384.0,66365.0,0.00279399]
[1721407596606,0.0874,66384.0,66366.0,0.15438174]
[1721407596799,0.0874,66384.0,66367.0,0.00279399]
[1721407596800,0.005,66371.0,66367.0,0.00279399]
[1721407597205,0.12615,66383.0,66367.0,0.00279399]
[1721407597436,0.12615,66383.0,66362.0,0.0932]
[1721407597437,0.28053174,66383.0,66363.0,0.00279399]
[1721407597651,0.005,66371.0,66362.0,0.0932]
[1721407598013,0.1584,66381.0,66362.0,0.0932]
[1721407598193,0.36457748,66380.0,66362.0,0.0932]
[1721407598383,0.15438174,66380.0,66362.0,0.0932]
[1721407598716,0.011,66377.0,66373.0,0.001]
[1721407598918,0.114,66383.0,66364.0,0.00279399]
[1721407599289,0.014,66381.0,66364.0,0.00279399]
[1721407599488,0.05076127,66381.0,66363.0,0.15438174]
[1721407599762,0.05076127,66381.0,66362.0,0.0932]
[1721407599763,0.1563843,66380.0,66362.0,0.0932]
[1721407600045,0.1573843,66380.0,66362.0,0.0932]
[1721407600273,0.0731,66378.0,66362.0,0.0932]
[1721407600479,0.0731,66378.0,66364.0,0.001]
[1721407600480,0.1563843,66377.0,66364.0,0.001]
[1721407600686,0.18584765,66377.0,66364.0,0.001]
[1721407600901,0.1563843,66376.0,66364.0,0.001]
[1721407601678,0.04279654,66375.0,66361.0,0.073]
[1721407602046,0.014,66381.0,66363.0,0.085]
[1721407602047,0.014,66380.0,66363.0,0.085]
[1721407602165,0.15637291,66379.0,66364.0,0.15717573]
[1721407602366,0.15637291,66379.0,66364.0,0.15438174]
[1721407602571,0.01,66376.0,66364.0,0.15538174]
[1721407602972,0.1731,66383.0,66365.0,0.00279399]
[1721407603173,0.01,66376.0,66365.0,0.00279399]
[1721407603446,0.01,66376.0,66364.0,0.15438174]
[1721407603626,0.01,66376.0,66365.0,0.00279399]
[1721407603802,0.011,66380.0,66365.0,0.00279399]
[1721407604003,0.27332757,66379.0,66365.0,0.00279399]
[1721407604206,0.007,66376.0,66364.0,0.15438174]
[1721407604411,0.18550769,66375.0,66364.0,0.15438174]
[1721407604617,0.011,66380.0,66363.0,0.085]
[1721407604618,0.23354971,66374.0,66363.0,0.085]
[1721407604835,0.011,66380.0,66363.0,0.085]
[1721407604836,0.15637492,66373.0,66363.0,0.085]
[1721407605036,0.15638156,66372.0,66364.0,0.001]
[1721407605274,0.15638156,66372.0,66363.0,0.085]
[1721407605275,0.15638156,66371.0,66363.0,0.085]
[1721407605486,0.2733066,66370.0,66363.0,0.085]
[1721407605729,0.27309759,66369.0,66363.0,0.085]
[1721407605931,0.27309759,66368.0,66363.0,0.085]
[1721407606130,0.15638156,66367.0,66363.0,0.085]
[1721407606379,0.15620019,66366.0,66363.0,0.085]
[1721407606591,0.23557479,66382.0,66363.0,0.085]
[1721407606732,0.301095,66425.0,66363.0,0.085]
[1721407606733,0.86587927,66381.0,66363.0,0.085]
[1721407606948,0.50231679,66380.0,66363.0,0.085]
[1721407607139,0.65669853,66379.0,66363.0,0.085]
[1721407607348,0.5023169,66378.0,66363.0,0.085]
[1721407607545,0.4265,66392.0,66363.0,0.24038174]
[1721407607546,0.15263899,66377.0,66363.0,0.24038174]
[1721407607752,0.001,66366.0,66364.0,0.15438174]
[1721407608146,0.001,66366.0,66365.0,0.00279399]
[1721407608348,0.3765,66392.0,66368.0,0.150674]
[1721407608349,0.1,66383.0,66368.0,0.150674]
[1721407608566,0.15256381,66382.0,66369.0,0.30505374]
[1721407608772,0.0624,66388.0,66369.0,0.30505374]
[1721407608773,0.15256381,66381.0,66370.0,0.0858]
[1721407608982,0.11682407,66380.0,66371.0,0.15438174]
[1721407609234,0.11682407,66379.0,66371.0,0.15438174]
[1721407609469,0.008,66378.0,66371.0,0.15438174]
[1721407609658,0.15277832,66377.0,66371.0,0.15438174]
[1721407609870,0.15277832,66376.0,66371.0,0.15438174]
[1721407610079,0.15277832,66375.0,66371.0,0.15438174]
[1721407610264,0.11699041,66374.0,66371.0,0.15438174]
[1721407610419,0.003,66381.0,66371.0,0.15438174]
[1721407610420,0.11699041,66373.0,66371.0,0.15438174]
[1721407610781,0.11699041,66372.0,66370.0,0.0858]
[1721407610981,0.11699041,66371.0,66370.0,0.0858]
[1721407611381,0.11699041,66379.0,66370.0,0.0858]
[1721407611598,0.15270851,66378.0,66370.0,0.0858]
[1721407611712,0.001,66380.0,66370.0,0.0858]
[1721407611713,0.15270851,66377.0,66370.0,0.08572789]
[1721407612054,0.11699041,66376.0,66370.0,0.08572789]
[1721407612287,0.11699041,66375.0,66370.0,0.08572789]
[1721407612428,0.11699041,66374.0,66371.0,0.001]
[1721407612630,0.07402249,66388.0,66371.0,0.001]
[1721407612831,0.58457541,66387.0,66371.0,0.006]
[1721407613044,0.28476527,66386.0,66370.0,0.08572789]
[1721407613247,0.009,66376.0,66370.0,0.08672789]
[1721407613424,0.11667223,66375.0,66370.0,0.08772789]
[1721407613626,0.11667223,66375.0,66370.0,0.08672789]
[1721407613824,0.11667223,66375.0,66370.0,0.08572789]
[1721407614032,0.11667223,66375.0,66371.0,0.001]
[1721407614273,0.11667223,66375.0,66371.0,0.002]
[1721407615364,0.11667223,66375.0,66371.0,0.001]
[1721407615594,0.07402249,66388.0,66370.0,0.08572789]
[1721407615595,0.11667223,66374.0,66370.0,0.08572789]
[1721407615759,0.11671892,66373.0,66370.0,0.08572789]
[1721407615954,0.11671892,66372.0,66370.0,0.08572789]
[1721407616161,0.11671892,66371.0,66370.0,0.08572789]
[1721407616571,0.07767973,66387.0,66370.0,0.08572789]
[1721407616572,0.11671892,66374.0,66370.0,0.08572789]
[1721407616782,0.11671892,66373.0,66370.0,0.08572789]
[1721407617007,0.11671892,66372.0,66370.0,0.08572789]
[1721407617345,0.11671892,66371.0,66363.0,0.0819]
[1721407617546,0.07717479,66384.0,66363.0,0.0819]
[1721407617547,0.11671892,66370.0,66363.0,0.23628174]
[1721407617685,0.11671892,66369.0,66363.0,0.23628174]
[1721407617886,0.06,66378.0,66363.0,0.23628174]
[1721407618088,0.23288183,66377.0,66363.0,0.23628174]
[1721407618288,0.23288183,66376.0,66363.0,0.23628174]
[1721407618493,0.07397,66378.0,66370.0,0.001]
[1721407618494,0.15270444,66375.0,66370.0,0.001]
[1721407618696,0.06,66378.0,66370.0,0.001]
[1721407618697,0.15270444,66374.0,66370.0,0.001]
[1721407618909,0.11699118,66373.0,66363.0,0.23628174]
[1721407619114,0.15273704,66372.0,66363.0,0.28106232]
[1721407619321,0.15273704,66371.0,66363.0,0.28106232]
[1721407619604,0.11699118,66370.0,66364.0,0.04478058]
[1721407619756,0.11699118,66369.0,66364.0,0.04478058]
[1721407619977,0.06,66378.0,66364.0,0.04478058]
[1721407620187,0.23256507,66377.0,66364.0,0.04478058]
[1721407620382,0.07397,66378.0,66366.0,0.04478058]
[1721407620383,0.23256507,66376.0,66366.0,0.04478058]
[1721407620550,0.15238563,66375.0,66366.0,0.04478058]
[1721407620768,0.15238563,66374.0,66367.0,0.04478058]
[1721407620951,0.15238563,66373.0,66367.0,0.04478058]
[1721407621156,0.15238563,66373.0,66366.0,0.04478058]
[1721407621157,0.15238563,66372.0,66366.0,0.04478058]
[1721407621357,0.19686828,66371.0,66365.0,0.04492704]
[1721407621563,0.23256278,66370.0,66363.0,0.04992704]
[1721407621765,0.02379343,66373.0,66362.0,0.04492704]
[1721407621766,0.23256278,66369.0,66362.0,0.04492704]
[1721407621966,0.07917479,66377.0,66362.0,0.04492704]
[1721407621967,0.1523771,66368.0,66362.0,0.04492704]
[1721407622336,0.1523771,66367.0,66364.0,0.008]
[1721407622535,0.001,66369.0,66366.0,0.066]
[1721407622702,0.001,66369.0,66367.0,0.60356835]
[1721407622906,0.001,66369.0,66368.0,0.33407501]
[1721407623103,0.001,66370.0,66368.0,0.6008837]
[1721407623264,0.001,66370.0,66369.0,0.57840966]
[1721407623471,0.001,66370.0,66369.0,0.33407501]
[1721407623705,0.001,66370.0,66367.0,0.002]
[1721407623706,0.03570028,66370.0,66367.0,0.002]
[1721407623909,0.29276842,66369.0,66367.0,0.002]
[1721407624108,0.29276842,66369.0,66361.0,0.04501974]
[1721407624109,0.23276842,66368.0,66361.0,0.04501974]
[1721407624352,0.11721652,66367.0,66360.0,0.0819]
[1721407624600,0.15300968,66366.0,66360.0,0.12695291]
[1721407624748,0.15300968,66365.0,66363.0,0.000924]
[1721407624930,0.15310212,66364.0,66363.0,0.000924]
[1721407625130,0.15310212,66364.0,66361.0,0.04513898]
[1721407625341,0.062,66369.0,66360.0,0.04513898]
[1721407625342,0.15310212,66363.0,66360.0,0.04513898]
[1721407625545,0.15310212,66362.0,66359.0,0.04513898]
[1721407625789,0.15310212,66361.0,66360.0,0.05713898]
[1721407625941,0.15310212,66361.0,66360.0,0.04513898]
[1721407626362,0.03579325,66361.0,66359.0,0.04513898]
[1721407626561,0.15640184,66360.0,66359.0,0.04513898]
[1721407626777,0.15640184,66368.0,66359.0,0.04513898]
[1721407627086,0.002,66361.0,66360.0,0.014]
[1721407627289,0.19407446,66361.0,66360.0,0.014]
[1721407627525,0.19308888,66361.0,66360.0,0.008]
[1721407627723,0.19308888,66361.0,66360.0,0.01556]
[1721407628280,0.19208888,66361.0,66360.0,0.00756]
[1721407628718,0.30970665,66361.0,66360.0,0.00756]
[1721407628921,0.30970665,66361.0,66359.0,0.012]
[1721407628922,0.30970665,66361.0,66359.0,0.004]
[1721407629130,0.38897364,66360.0,66353.0,0.009196]
[1721407629303,0.30870665,66359.0,66353.0,0.009196]
[1721407629507,0.30870665,66358.0,66353.0,0.009196]
[1721407629705,0.30870665,66357.0,66353.0,0.009196]
[1721407629907,0.30870665,66356.0,66353.0,0.009196]
[1721407630281,0.19208888,66355.0,66353.0,0.009196]
[1721407630498,0.15640184,66354.0,66353.0,0.009196]
[1721407630704,0.31623134,66354.0,66353.0,0.009196]
[1721407630913,0.15640184,66354.0,66353.0,0.009196]
[1721407631068,0.005,66356.0,66353.0,0.009196]
[1721407631274,0.19210887,66355.0,66353.0,0.009196]
[1721407631473,0.005,66356.0,66353.0,0.009196]
[1721407631652,0.19210945,66355.0,66353.0,0.009196]
[1721407632001,0.005,66356.0,66353.0,0.010196]
[1721407632132,0.005,66356.0,66354.0,0.15438174]
[1721407632339,0.01159413,66363.0,66353.0,0.009196]
[1721407632539,0.0604,66367.0,66353.0,0.009196]
[1721407632540,0.31652566,66362.0,66353.0,0.16357774]
[1721407632758,0.003,66354.0,66353.0,0.16357774]
[1721407633141,0.004,66356.0,66353.0,0.16357774]
[1721407633338,0.07224959,66367.0,66353.0,0.16357774]
[1721407633604,0.013,66363.0,66353.0,0.16357774]
[1721407633763,0.20306952,66362.0,66353.0,0.16457774]
[1721407633942,0.19206952,66361.0,66353.0,0.16457774]
[1721407634142,0.19198155,66360.0,66353.0,0.16457774]
[1721407634348,0.19198004,66359.0,66353.0,0.16457774]
[1721407634554,0.19198276,66358.0,66353.0,0.16457774]
[1721407634755,0.011,66362.0,66353.0,0.16457774]
[1721407635005,0.19199679,66361.0,66353.0,0.16457774]
[1721407635212,0.011,66362.0,66353.0,0.16457774]
[1721407635213,0.19199679,66360.0,66354.0,0.1398]
[1721407635412,0.19199679,66359.0,66354.0,0.1398]
[1721407635637,0.011,66362.0,66354.0,0.1398]
[1721407635916,0.19196115,66361.0,66354.0,0.1398]
[1721407636123,0.19196115,66360.0,66354.0,0.1398]
[1721407636324,0.006,66361.0,66355.0,0.15438174]
[1721407636453,0.01184959,66367.0,66355.0,0.15438174]
[1721407636662,0.00084,66373.0,66359.0,0.150694]
[1721407636862,0.00084,66373.0,66357.0,0.4325]
[1721407636863,0.15638412,66372.0,66361.0,0.1354]
[1721407637232,0.006,66362.0,66361.0,0.1354]
[1721407637702,0.006,66362.0,66361.0,0.29279516]
[1721407637880,0.01230976,66373.0,66362.0,0.00279399]
[1721407638081,0.01230976,66373.0,66364.0,0.00279399]
[1721407638082,0.19193277,66372.0,66364.0,0.00279399]
[1721407638286,0.19193277,66372.0,66365.0,0.15438174]
[1721407638287,0.156382,66371.0,66365.0,0.15438174]
[1721407638671,0.156382,66371.0,66353.0,0.009196]
[1721407638672,0.1589,66366.0,66353.0,0.009196]
[1721407638876,0.0663,66367.0,66349.0,0.14362169]
[1721407638877,0.31579301,66365.0,66349.0,0.14362169]
[1721407639077,0.07717479,66362.0,66349.0,0.14362169]
[1721407639267,0.38209301,66361.0,66349.0,0.14362169]
[1721407639423,0.38209301,66361.0,66346.0,0.0015582]
[1721407639424,0.39389301,66360.0,66346.0,0.0015582]
[1721407639629,0.31579301,66359.0,66346.0,0.0015582]
[1721407639843,0.31634208,66358.0,66346.0,0.0015582]
[1721407640041,0.31634208,66357.0,66346.0,0.0015582]
[1721407640240,0.09618636,66360.0,66346.0,0.0015582]
[1721407640241,0.156382,66356.0,66346.0,0.0015582]
[1721407640541,0.1589,66353.0,66346.0,0.0015582]
[1721407640742,0.1589,66353.0,66335.0,0.009196]
[1721407640743,0.065,66346.0,66335.0,0.009196]
[1721407640918,0.065,66346.0,66330.0,0.14362169]
[1721407640919,0.1436,66340.0,66330.0,0.14362169]
[1721407641104,0.39742014,66339.0,66330.0,0.14362169]
[1721407641318,0.31721593,66338.0,66330.0,0.14362169]
[1721407641527,0.31721593,66337.0,66330.0,0.14362169]
[1721407641753,0.29798174,66340.0,66330.0,0.14362169]
[1721407641754,0.31721593,66336.0,66330.0,0.14362169]
[1721407641950,0.31721593,66335.0,66330.0,0.14362169]
[1721407642152,0.19206793,66334.0,66330.0,0.14362169]
[1721407642387,0.07717479,66339.0,66330.0,0.14362169]
[1721407642604,0.31746763,66338.0,66330.0,0.14362169]
[1721407642896,0.19227893,66337.0,66330.0,0.14362169]
[1721407643048,0.07717479,66332.0,66330.0,0.14362169]
[1721407643250,0.17797554,66332.0,66317.0,0.14362169]
[1721407643481,0.31748459,66331.0,66317.0,0.14362169]
[1721407643706,0.31748769,66330.0,66317.0,0.14362169]
[1721407644054,0.19228527,66329.0,66317.0,0.14362169]
[1721407644355,0.11573601,66332.0,66331.0,0.001]
[1721407644524,0.10085997,66332.0,66317.0,0.14362169]
[1721407644727,0.065,66332.0,66317.0,0.14362169]
[1721407644872,0.008,66331.0,66317.0,0.14462169]
[1721407645070,0.07776699,66337.0,66318.0,0.15438174]
[1721407645277,0.31752739,66336.0,66318.0,0.15438174]
[1721407645482,0.006,66329.0,66318.0,0.15438174]
[1721407645878,0.006,66329.0,66319.0,0.00301558]
[1721407646080,0.006,66329.0,66318.0,0.15438174]
[1721407646081,0.006,66329.0,66321.0,0.1403]
[1721407646326,0.006,66329.0,66322.0,0.15438174]
[1721407646771,0.014,66336.0,66322.0,0.15438174]
[1721407647174,0.008,66331.0,66323.0,0.00301525]
[1721407647372,0.008,66331.0,66324.0,0.23068174]
[1721407647584,0.3765,66340.0,66324.0,0.23068174]
[1721407647585,0.004,66329.0,66324.0,0.23068174]
[1721407649388,0.001,66331.0,66324.0,0.23068174]
[1721407649750,0.01,66336.0,66324.0,0.23068174]
[1721407650132,0.04865,66336.0,66324.0,0.23068174]
[1721407650253,0.03865,66336.0,66324.0,0.23068174]
[1721407650647,0.004,66331.0,66324.0,0.23068174]
[1721407651189,0.001,66331.0,66325.0,0.36585917]
[1721407651333,0.001,66331.0,66326.0,0.23647573]
[1721407651537,0.018,66336.0,66326.0,0.23647573]
[1721407651538,0.01,66336.0,66331.0,0.0793]
[1721407651739,0.01,66336.0,66333.0,0.150753]
[1721407651942,0.07717479,66335.0,66334.0,0.00279399]
[1721407652149,0.1476,66333.0,66317.0,0.05850601]
[1721407652304,0.1476,66333.0,66312.0,0.0001]
[1721407652305,0.39737416,66332.0,66312.0,0.0001]
[1721407652502,0.31740537,66331.0,66312.0,0.0001]
[1721407652774,0.07996879,66332.0,66312.0,0.0001]
[1721407652775,0.32019937,66330.0,66312.0,0.0001]
[1721407652948,0.31740537,66329.0,66312.0,0.0001]
[1721407653151,0.32019937,66328.0,66312.0,0.0001]
[1721407653473,0.31740537,66327.0,66312.0,0.0001]
[1721407653834,0.15928664,66326.0,66317.0,0.15438174]
[1721407654017,0.01592866,66325.0,66312.0,0.0001]
[1721407654220,0.35112829,66324.0,66312.0,0.0001]
[1721407654373,0.28173429,66323.0,66312.0,0.0001]
[1721407654580,0.081,66321.0,66312.0,0.0001]
[1721407654840,0.002794,66320.0,66312.0,0.0001]
[1721407655040,0.002794,66320.0,66317.0,0.0793]
[1721407655210,0.0686,66327.0,66317.0,0.0793]
[1721407655211,0.002794,66326.0,66317.0,0.0793]
[1721407655418,0.28173913,66325.0,66317.0,0.0793]
[1721407655630,0.0686,66327.0,66318.0,0.15438174]
[1721407655631,0.002794,66324.0,66318.0,0.15438174]
[1721407655848,0.0118531,66331.0,66318.0,0.15739722]
[1721407655849,0.002794,66326.0,66318.0,0.15739722]
[1721407656075,0.002794,66330.0,66318.0,0.15438174]
[1721407656498,0.002794,66334.0,66318.0,0.15438174]
[1721407656707,0.31765616,66333.0,66318.0,0.15438174]
[1721407656926,0.28450188,66332.0,66318.0,0.15438174]
[1721407657129,0.001,66326.0,66318.0,0.15438174]
[1721407657358,0.002794,66325.0,66318.0,0.15438174]
[1721407657623,0.08989294,66335.0,66318.0,0.15438174]
[1721407657624,0.004,66330.0,66318.0,0.15438174]
[1721407657822,0.05437942,66329.0,66320.0,0.150782]
[1721407658038,0.009,66333.0,66324.0,0.0798]
[1721407658039,0.006,66332.0,66324.0,0.0798]
[1721407658247,0.006,66332.0,66329.0,0.150761]
[1721407658466,0.009,66333.0,66332.0,0.150756]
[1721407658712,0.009,66333.0,66332.0,0.60665074]
[1721407658951,0.009,66333.0,66332.0,0.16454932]
[1721407659419,0.00084,66336.0,66332.0,0.16454932]
[1721407659619,0.00084,66336.0,66333.0,0.15438174]
[1721407659793,0.00084,66336.0,66334.0,0.01014571]
[1721407660011,0.00084,66336.0,66335.0,0.15438174]
[1721407660239,0.00084,66336.0,66335.0,0.16451652]
[1721407660444,0.00084,66336.0,66335.0,0.01013478]
[1721407660843,0.00084,66336.0,66332.0,0.002]
[1721407661004,0.00084,66336.0,66324.0,0.0821]
[1721407661005,0.002794,66335.0,66324.0,0.0821]
[1721407661206,0.002794,66335.0,66319.0,0.0661]
[1721407661207,0.07717479,66332.0,66325.0,0.01024412]
[1721407661413,0.12799067,66331.0,66317.0,0.000924]
[1721407661624,0.002794,66331.0,66318.0,0.01032069]
[1721407661828,0.002794,66334.0,66319.0,0.15438174]
[1721407662190,0.28169063,66333.0,66320.0,0.01048416]
[1721407662335,0.00984,66336.0,66321.0,0.15438174]
[1721407662336,0.12798987,66332.0,66321.0,0.15438174]
[1721407662568,0.01775394,66332.0,66321.0,0.15438174]
[1721407662767,0.01775394,66332.0,66322.0,0.01046229]
[1721407662768,0.12519541,66331.0,66322.0,0.01046229]
[1721407663130,0.01184,66336.0,66322.0,0.01046229]
[1721407663131,0.0607,66328.0,66322.0,0.01046229]
[1721407663249,0.002794,66327.0,66322.0,0.01046229]
[1721407663454,0.002794,66327.0,66325.0,0.001]
[1721407663856,0.002794,66327.0,66320.0,0.001]
[1721407664073,0.002794,66327.0,66317.0,0.000924]
[1721407664326,0.002794,66327.0,66317.0,0.15530574]
[1721407664555,0.12520395,66326.0,66317.0,0.15530574]
[1721407664683,0.002794,66325.0,66318.0,0.01050604]
[1721407664887,0.002794,66327.0,66318.0,0.01050604]
[1721407665109,0.12520553,66326.0,66318.0,0.01050604]
[1721407665283,0.002794,66325.0,66318.0,0.01050604]
[1721407665685,0.002794,66327.0,66319.0,0.23718174]
[1721407665888,0.12520418,66326.0,66319.0,0.23718174]
[1721407666110,0.0637,66334.0,66320.0,0.01049597]
[1721407666328,0.33692791,66333.0,66321.0,0.15438174]
[1721407666530,0.31778115,66332.0,66321.0,0.15438174]
[1721407666730,0.32057515,66331.0,66322.0,0.01047409]
[1721407666932,0.31778115,66330.0,66322.0,0.01047409]
[1721407667095,0.01635276,66333.0,66319.0,0.004]
[1721407667096,0.32057515,66329.0,66319.0,0.004]
[1721407667295,0.32057515,66329.0,66317.0,0.000924]
[1721407667296,0.15650535,66328.0,66317.0,0.000924]
[1721407667501,0.15650535,66328.0,66317.0,0.15530574]
[1721407667502,0.16409547,66327.0,66317.0,0.15530574]
[1721407667702,0.28170745,66326.0,66318.0,0.01068466]
[1721407667923,0.28450145,66325.0,66318.0,0.01068466]
[1721407668124,0.31780645,66324.0,66318.0,0.01068466]
[1721407668354,0.32060045,66323.0,66318.0,0.01068466]
[1721407668561,0.31780645,66322.0,66318.0,0.01068466]
[1721407668784,0.28450145,66321.0,66318.0,0.01068466]
[1721407668942,0.28170745,66320.0,66318.0,0.01068466]
[1721407669153,0.002,66329.0,66318.0,0.01068466]
[1721407669154,0.1279961,66319.0,66318.0,0.01068466]
[1721407669360,0.28171013,66319.0,66318.0,0.01068466]
[1721407669569,0.28171013,66319.0,66318.0,0.1650664]
[1721407669570,0.31776684,66319.0,66318.0,0.1650664]
[1721407669778,0.28171013,66319.0,66318.0,0.1650664]
[1721407669951,0.31775923,66319.0,66318.0,0.1650664]
[1721407670394,0.31875923,66319.0,66318.0,0.1750664]
[1721407670563,0.318805,66319.0,66318.0,0.1770664]
[1721407671000,0.28271762,66319.0,66318.0,0.1750664]
[1721407671220,0.3188034,66319.0,66318.0,0.1750664]
[1721407671458,0.3198034,66319.0,66318.0,0.1800664]
[1721407673367,0.33138615,66319.0,66318.0,0.1800664]
[1721407673756,0.33135988,66319.0,66318.0,0.1800664]
[1721407676783,0.20615068,66319.0,66318.0,0.1800664]
[1721407677091,0.20615068,66319.0,66318.0,0.54875899]
[1721407677092,0.33145017,66319.0,66318.0,0.54875899]
[1721407677430,0.33145017,66319.0,66318.0,0.9981084]
[1721407677431,0.01358275,66319.0,66318.0,0.9981084]
[1721407678729,0.01358275,66319.0,66318.0,0.1800664]
[1721407679110,0.29511184,66319.0,66318.0,0.1800664]
[1721407679586,0.33116289,66319.0,66318.0,0.02568466]
[1721407680285,0.33118429,66319.0,66318.0,0.02568466]
[1721407680490,0.33118429,66319.0,66318.0,0.9340084]
[1721407680707,0.01340126,66319.0,66318.0,0.6987314]
[1721407680832,0.01340126,66319.0,66318.0,1.0003084]
[1721407681252,0.01340126,66319.0,66318.0,1.3018854]
[1721407682111,0.01340126,66319.0,66318.0,0.75753574]
[1721407682309,0.01340126,66319.0,66318.0,0.90832374]
[1721407683712,0.01340126,66319.0,66318.0,1.14632374]
[1721407684500,0.01340126,66319.0,66318.0,1.44790074]
[1721407684670,0.00181851,66319.0,66318.0,1.57090074]
[1721407685037,0.00084,66336.0,66335.0,0.799747]
[1721407685249,0.00084,66336.0,66335.0,1.21512874]
[1721407685371,0.00084,66336.0,66335.0,1.61662774]
[1721407685589,0.00084,66336.0,66335.0,1.95079788]
[1721407685794,0.00084,66336.0,66335.0,2.13345059]
[1721407686014,0.00084,66336.0,66335.0,2.08594736]
[1721407686219,0.002794,66359.0,66343.0,0.078]
[1721407686423,0.002794,66368.0,66366.0,0.150678]
[1721407686653,0.00084,66373.0,66368.0,0.238]
[1721407686799,0.00084,66373.0,66372.0,0.150665]
[1721407686995,0.00084,66373.0,66372.0,0.60637774]
[1721407687253,0.00084,66373.0,66372.0,0.90770874]
[1721407687464,0.00084,66373.0,66372.0,0.90570874]
[1721407687930,0.00084,66373.0,66372.0,1.20703974]
[1721407688140,0.002794,66389.0,66388.0,0.451888]
[1721407688285,0.002794,66398.0,66389.0,0.238]
[1721407688504,0.002794,66398.0,66391.0,0.451867]
[1721407688696,0.002794,66398.0,66391.0,0.90749374]
[1721407688910,0.002794,66399.0,66391.0,0.90749374]
[1721407689344,0.002794,66399.0,66391.0,1.30873874]
[1721407689614,20.0,66400.0,66399.0,0.150604]
[1721407689816,20.0,66400.0,66399.0,0.90740374]
[1721407690144,20.0,66400.0,66399.0,1.52811274]
[1721407690906,20.0,66400.0,66399.0,1.51452999]
[1721407692047,20.0,66400.0,66399.0,1.99303899]
[1721407692433,20.0,66400.0,66399.0,2.00703899]
[1721407692634,20.0,66400.0,66399.0,1.40462099]
[1721407693051,20.0,66400.0,66399.0,1.70582999]
[1721407693330,20.0,66400.0,66399.0,1.40462099]
[1721407693878,20.0,66400.0,66399.0,1.40462099]
[1721407694081,20.0,66400.0,66399.0,1.41862099]
[1721407694727,20.0,66400.0,66399.0,1.71982999]
[1721407694930,20.0,66400.0,66399.0,1.41862099]
[1721407695759,20.0,66400.0,66399.0,1.71982999]
[1721407696339,20.0,66400.0,66399.0,1.41862099]
[1721407696939,20.0,66400.0,66399.0,1.71982999]